fUST/lending_fUST_20250727
["ID","MTS","AMOUNT","RATE_DAILY","PERIOD"]
[375175724,1753577451806,-2000.0,0.000208,3]
[375175725,1753577451816,-2000.0,0.000208,4]
[375175726,1753577451825,-460.0,0.00020827,2]
[375175727,1753577451834,-460.0,0.00020827,2]
[375175728,1753577451844,-460.0,0.00020827,2]
[375175729,1753577451854,-460.0,0.00020827,2]
[375175730,1753577451873,-460.0,0.00020829,2]
[375175731,1753577451900,-888.86,0.00020829,2]
[375175732,1753577451911,-460.0,0.00020829,2]
[375175733,1753577451920,-1108.21,0.00020829,2]
[375175734,1753577451930,-460.0,0.00020829,2]
[375175735,1753577451939,-496.16,0.00020829,2]
[375175736,1753577451949,-460.0,0.00020829,2]
[375175737,1753577451959,-460.0,0.00020829,2]
[375175738,1753577451978,-3274.76,0.0002083,2]
[375175739,1753577451988,-3274.76,0.0002083,2]
[375175740,1753577451998,-3274.76,0.0002083,2]
[375175741,1753577452008,-3274.76,0.0002083,2]
[375175742,1753577452017,-3274.94079285,0.0002083,2]
[375175743,1753577452027,-604.16,0.0002083,2]
[375175744,1753577452037,-604.16,0.0002083,2]
[375175745,1753577452047,-604.16,0.0002083,2]
[375175746,1753577452057,-604.16,0.0002083,2]
[375175747,1753577452066,-604.32,0.0002083,2]
[375175748,1753577452077,-1880.24,0.00020831,2]
[375175749,1753577452087,-460.0,0.00020831,2]
[375175750,1753577452099,-671.82,0.00020831,2]
[375175751,1753577452109,-541.22,0.00020833,2]
[375175752,1753577452119,-460.0,0.00020833,2]
[375175753,1753577452131,-151.0,0.00020868,2]
[375175754,1753577452141,-1500.0,0.00020868,2]
[375175755,1753577452150,-1500.0,0.00020868,2]
[375175756,1753577452161,-1500.0,0.00020868,2]
[375175757,1753577452170,-897.73328618,0.00020868,2]
[375175758,1753577452180,-1500.0,0.00020868,2]
[375175759,1753577452189,-1500.0,0.00020868,2]
[375175760,1753577452199,-624.6,0.00020929,2]
[375175761,1753577452209,-460.0,0.00020929,2]
[375175762,1753577452223,-151.0,0.00020929,2]
[375175763,1753577452233,-910.08,0.00020929,2]
[375175764,1753577452243,-747.92,0.00020929,2]
[375175765,1753577452253,-2903.69572395,0.00020934,4]
[375175766,1753577452262,-460.0,0.00020989,2]
[375175767,1753577452272,-1189.54,0.00020991,2]
[375175768,1753577452282,-460.0,0.00020991,2]
[375175769,1753577452292,-1127.01,0.00020991,2]
[375175770,1753577452302,-460.0,0.00020991,2]
[375175771,1753577452312,-897.91,0.00020991,2]
[375175772,1753577452322,-460.0,0.00020991,2]
[375175773,1753577452332,-460.0,0.00020991,2]
[375175774,1753577452342,-460.0,0.00020991,2]
[375175775,1753577452352,-460.0,0.00020991,2]
[375175776,1753577452361,-594.4,0.00021,2]
[375175777,1753577452371,-3134.01,0.00021,2]
[375175778,1753577452380,-460.0,0.00021,2]
[375175779,1753577452389,-460.0,0.00021,2]
[375175780,1753577452398,-460.0,0.00021,2]
[375175781,1753577452476,-460.0,0.00021002,2]
[375175782,1753577452486,-460.0,0.00021002,2]
[375175783,1753577452495,-164.53,0.00021002,2]
[375175784,1753577452506,-460.0,0.00021002,2]
[375175785,1753577452516,-460.0,0.00021002,2]
[375175786,1753577452526,-460.0,0.00021002,2]
[375175787,1753577452536,-460.0,0.00021002,2]
[375175788,1753577452546,-487.91,0.00021002,2]
[375175789,1753577452555,-460.0,0.00021002,2]
[375175790,1753577452566,-460.0,0.00021002,2]
[375175791,1753577452576,-460.0,0.00021002,2]
[375175792,1753577452585,-460.0,0.00021002,2]
[375175793,1753577452595,-680.27,0.00021002,2]
[375175794,1753577452605,-460.0,0.00021002,2]
[375175795,1753577452615,-460.0,0.00021002,2]
[375175796,1753577452624,-183.15050229,0.00021047,2]
[375175797,1753577452634,-222.0,0.00021077,2]
[375175798,1753577452644,-420.0,0.00021077,2]
[375175799,1753577452654,-246.0,0.00021077,2]
[375175800,1753577452663,-1680.0,0.00021079,2]
[375175801,1753577452673,-460.0,0.00021101,2]
[375175802,1753577452683,-460.0,0.00021101,2]
[375175803,1753577452693,-460.0,0.00021101,2]
[375175804,1753577452702,-224.01,0.00021103,2]
[375175805,1753577452713,-888.86,0.00021103,2]
[375175806,1753577452723,-460.0,0.00021103,2]
[375175807,1753577452733,-1108.21,0.00021103,2]
[375175808,1753577452743,-393.9237969,0.00021103,2]
[375175809,1753577452753,-460.0,0.00021103,2]
[375175810,1753577452763,-560.82,0.00021103,2]
[375175811,1753577452772,-1880.24,0.00021105,2]
[375175812,1753577452781,-460.0,0.00021105,2]
[375175813,1753577452791,-671.82,0.00021105,2]
[375175814,1753577452801,-460.0,0.00021107,2]
[375175815,1753577452811,-2000.0,0.00021116,2]
[375175816,1753577452820,-500.0,0.00021116,2]
[375175817,1753577452830,-2000.0,0.00021116,2]
[375175818,1753577452839,-1015.86765013,0.00021116,2]
[375175819,1753577452850,-2903.69572395,0.00021141,4]
[375175820,1753577452859,-624.6,0.00021203,2]
[375175821,1753577452869,-460.0,0.00021203,2]
[375175822,1753577452880,-910.08,0.00021203,2]
[375175823,1753577452890,-747.92,0.00021203,2]
[375175824,1753577452900,-500.0,0.00021216,2]
[375175825,1753577452910,-460.0,0.00021263,2]
[375175826,1753577452919,-1189.54,0.00021265,2]
[375175827,1753577452929,-460.0,0.00021265,2]
[375175828,1753577452940,-1127.01,0.00021265,2]
[375175829,1753577452949,-460.0,0.00021265,2]
[375175830,1753577452959,-897.91,0.00021265,2]
[375175831,1753577452969,-460.0,0.00021265,2]
[375175832,1753577452979,-460.0,0.00021265,2]
[375175833,1753577452988,-460.0,0.00021265,2]
[375175834,1753577452997,-3134.01,0.00021274,2]
[375175835,1753577453007,-460.0,0.00021274,2]
[375175836,1753577453017,-460.0,0.00021274,2]
[375175837,1753577453026,-460.0,0.00021274,2]
[375175838,1753577453037,-557.44,0.00021276,2]
[375175839,1753577453046,-460.0,0.00021276,2]
[375175840,1753577453056,-495.88,0.00021276,2]
[375175841,1753577453066,-460.0,0.00021276,2]
[375175842,1753577453076,-460.0,0.00021276,2]
[375175843,1753577453085,-460.0,0.00021276,2]
[375175844,1753577453095,-487.91,0.00021276,2]
[375175845,1753577453105,-460.0,0.00021276,2]
[375175846,1753577453126,-460.0,0.00021276,2]
[375175847,1753577453138,-460.0,0.00021276,2]
[375175848,1753577453147,-460.0,0.00021276,2]
[375175849,1753577453156,-680.27,0.00021276,2]
[375175850,1753577453166,-430.46,0.00021276,2]
[375175851,1753577453175,-460.0,0.00021276,2]
[375175852,1753577453189,-2000.0,0.00021286,3]
[375175853,1753577453207,-155.0,0.00021293,2]
[375175854,1753577453223,-407.0,0.00021299,2]
[375175855,1753577453237,-236.57,0.00021304,2]
[375175856,1753577453253,-2903.69572395,0.00021348,5]
[375175857,1753577453269,-460.0,0.00021375,2]
[375175858,1753577453285,-460.0,0.00021375,2]
[375175859,1753577453301,-460.0,0.00021375,2]
[375175860,1753577453317,-888.86,0.00021377,2]
[375175861,1753577453330,-460.0,0.00021377,2]
[375175862,1753577453345,-1108.21,0.00021377,2]
[375175863,1753577453361,-460.0,0.00021377,2]
[375175864,1753577453376,-1880.24,0.00021379,2]
[375175865,1753577453388,-460.0,0.00021379,2]
[375175866,1753577453402,-671.82,0.00021379,2]
[375175867,1753577453415,-284.338254,0.00021381,2]
[375175868,1753577453429,-460.0,0.00021381,2]
[375175869,1753577453443,-500.0,0.00021416,2]
[375175870,1753577453458,-1500.0,0.00021416,2]
[375175871,1753577453475,-500.0,0.00021447,2]
[375175872,1753577453487,-624.6,0.00021477,2]
[375175873,1753577453498,-460.0,0.00021477,2]
[375175874,1753577453511,-910.08,0.00021477,2]
[375175875,1753577453527,-747.92,0.00021477,2]
[375175876,1753577453541,-2000.0,0.00021498,3]
[375175877,1753577453552,-388.43,0.00021537,2]
[375175878,1753577453565,-1189.54,0.00021539,2]
[375175879,1753577453578,-587.52,0.00021539,2]
[375175880,1753577453589,-1127.01,0.00021539,2]
[375175881,1753577453601,-460.0,0.00021539,2]
[375175882,1753577453613,-897.91,0.00021539,2]
[375175883,1753577453625,-460.0,0.00021539,2]
[375175884,1753577453637,-460.0,0.00021539,2]
[375175885,1753577453649,-460.0,0.00021539,2]
[375175886,1753577453662,-3134.01,0.00021548,2]
[375175887,1753577453674,-460.0,0.00021548,2]
[375175888,1753577453686,-460.0,0.00021548,2]
[375175889,1753577453698,-460.0,0.00021548,2]
[375175890,1753577453711,-311.35,0.0002155,2]
[375175891,1753577453724,-460.0,0.0002155,2]
[375175892,1753577453736,-460.0,0.0002155,2]
[375175893,1753577453750,-460.0,0.0002155,2]
[375175894,1753577453763,-487.91,0.0002155,2]
[375175895,1753577453777,-460.0,0.0002155,2]
[375175896,1753577453791,-460.0,0.0002155,2]
[375175897,1753577453806,-460.0,0.0002155,2]
[375175898,1753577453818,-542.91,0.0002155,2]
[375175899,1753577453831,-680.27,0.0002155,2]
[375175900,1753577453844,-382.12,0.0002155,2]
[375175901,1753577453856,-2903.69572395,0.00021555,5]
[375175902,1753577453869,-460.0,0.00021649,2]
[375175903,1753577453882,-460.0,0.00021649,2]
[375175904,1753577453894,-460.0,0.00021649,2]
[375175905,1753577453906,-888.86,0.00021651,2]
[375175906,1753577453919,-217.74,0.00021651,2]
[375175907,1753577453933,-1108.21,0.00021651,2]
[375175908,1753577453946,-460.0,0.00021651,2]
[375175909,1753577453960,-1880.24,0.00021653,2]
[375175910,1753577453973,-460.0,0.00021653,2]
[375175911,1753577453987,-671.82,0.00021653,2]
[375175912,1753577454001,-609.63,0.00021655,2]
[375175913,1753577454013,-2500.0,0.00021664,2]
[375175914,1753577454026,-483.43247783,0.00021664,2]
[375175915,1753577454039,-2000.0,0.00021668,3]
[375175916,1753577454052,-624.6,0.00021751,2]
[375175917,1753577454065,-460.0,0.00021751,2]
[375175918,1753577454077,-910.08,0.00021751,2]
[375175919,1753577454091,-747.92,0.00021751,2]
[375175920,1753577454103,-2903.69572395,0.00021762,5]
[375175921,1753577454119,-2000.0,0.000218,5]
[375175922,1753577454135,-151.0,0.000218,2]
[375175923,1753577454250,-1189.54,0.00021813,2]
[375175924,1753577454265,-1127.01,0.00021813,2]
[375175925,1753577454275,-460.0,0.00021813,2]
[375175926,1753577454284,-897.91,0.00021813,2]
[375175927,1753577454294,-346.27,0.00021813,2]
[375175928,1753577454304,-460.0,0.00021813,2]
[375175929,1753577454314,-460.0,0.00021813,2]
[375175930,1753577454324,-3000.0,0.00021821,3]
[375175931,1753577454334,-3134.01,0.00021822,2]
[375175932,1753577454343,-418.31,0.00021822,2]
[375175933,1753577454353,-460.0,0.00021822,2]
[375175934,1753577454363,-460.0,0.00021822,2]
[375175935,1753577454372,-460.0,0.00021824,2]
[375175936,1753577454382,-460.0,0.00021824,2]
[375175937,1753577454392,-487.91,0.00021824,2]
[375175938,1753577454402,-460.0,0.00021824,2]
[375175939,1753577454411,-476.40035774,0.00021824,2]
[375175940,1753577454421,-460.0,0.00021824,2]
[375175941,1753577454431,-680.27,0.00021824,2]
[375175942,1753577454441,-500.0,0.00021917,2]
[375175943,1753577454457,-151.0,0.00021918,2]
[375175944,1753577454468,-319.06732735,0.00021923,2]
[375175945,1753577454478,-460.0,0.00021923,2]
[375175946,1753577454487,-460.0,0.00021923,2]
[375175947,1753577454498,-888.86,0.00021925,2]
[375175948,1753577454507,-1108.21,0.00021925,2]
[375175949,1753577454517,-460.0,0.00021925,2]
[375175950,1753577454526,-1880.24,0.00021927,2]
[375175951,1753577454536,-460.0,0.00021927,2]
[375175952,1753577454546,-671.82,0.00021927,2]
[375175953,1753577454555,-2903.69572395,0.00021969,6]
[375175954,1753577454565,-150.0,0.0002199,2]
[375175955,1753577454575,-2995.26,0.00022,7]
[375175956,1753577454584,-874.49,0.00022,7]
[375175957,1753577454593,-2265.62,0.00022,7]
[375175958,1753577454603,-21072.81,0.00022,2]
[375175959,1753577454613,-151.0,0.00022,7]
[375175960,1753577454623,-151.0,0.00022,7]
[375175961,1753577454632,-158.0,0.00022,2]
[375175962,1753577454642,-624.6,0.00022025,2]
[375175963,1753577454651,-460.0,0.00022025,2]
[375175964,1753577454661,-910.08,0.00022025,2]
[375175965,1753577454671,-747.92,0.00022025,2]
[375175966,1753577454680,-8554.09040226,0.00022078,2]
[375175967,1753577454690,-1189.54,0.00022087,2]
[375175968,1753577454699,-1127.01,0.00022087,2]
[375175969,1753577454708,-226.65,0.00022087,2]
[375175970,1753577454719,-897.91,0.00022087,2]
[375175971,1753577454728,-259.06,0.00022087,2]
[375175972,1753577454737,-460.0,0.00022087,2]
[375175973,1753577454747,-3134.01,0.00022096,2]
[375175974,1753577454757,-195.91,0.00022096,2]
[375175975,1753577454767,-460.0,0.00022096,2]
[375175976,1753577454778,-460.0,0.00022098,2]
[375175977,1753577454788,-460.0,0.00022098,2]
[375175978,1753577454799,-487.91,0.00022098,2]
[375175979,1753577454809,-460.0,0.00022098,2]
[375175980,1753577454818,-445.81,0.00022098,2]
[375175981,1753577454828,-680.27,0.00022098,2]
[375175982,1753577454837,-151.0,0.000221,7]
[375175983,1753577454847,-236.57,0.00022154,2]
[375175984,1753577454857,-2903.69572395,0.00022176,6]
[375175985,1753577454867,-166.630852,0.0002219,2]
[375175986,1753577454877,-460.0,0.00022197,2]
[375175987,1753577454887,-460.0,0.00022197,2]
[375175988,1753577454897,-888.86,0.00022199,2]
[375175989,1753577454907,-1108.21,0.00022199,2]
[375175990,1753577454917,-460.0,0.00022199,2]
[375175991,1753577454928,-1880.24,0.00022201,2]
[375175992,1753577454938,-460.0,0.00022201,2]
[375175993,1753577454948,-671.82,0.00022201,2]
[375175994,1753577454958,-3000.0,0.00022212,2]
[375175995,1753577454969,-624.6,0.00022299,2]
[375175996,1753577454979,-460.0,0.00022299,2]
[375175997,1753577454989,-910.08,0.00022299,2]
[375175998,1753577454999,-747.92,0.00022299,2]
[375175999,1753577455010,-500.0,0.00022312,2]
[375176000,1753577455020,-1189.54,0.00022361,2]
[375176001,1753577455030,-1127.01,0.00022361,2]
[375176002,1753577455040,-897.91,0.00022361,2]
[375176003,1753577455050,-460.0,0.00022361,2]
[375176004,1753577455060,-3134.01,0.0002237,2]
[375176005,1753577455070,-460.0,0.0002237,2]
[375176006,1753577455080,-460.0,0.00022372,2]
[375176007,1753577455090,-460.0,0.00022372,2]
[375176008,1753577455100,-487.91,0.00022372,2]
[375176009,1753577455110,-460.0,0.00022372,2]
[375176010,1753577455120,-680.27,0.00022372,2]
[375176011,1753577455136,-2903.69572395,0.00022383,7]
[375176012,1753577455147,-1695.62,0.00022465,2]
[375176013,1753577455157,-460.0,0.00022471,2]
[375176014,1753577455167,-460.0,0.00022471,2]
[375176015,1753577455176,-151.0,0.00022472,7]
[375176016,1753577455185,-888.86,0.00022473,2]
[375176017,1753577455194,-1108.21,0.00022473,2]
[375176018,1753577455204,-460.0,0.00022473,2]
[375176019,1753577455215,-1880.24,0.00022475,2]
[375176020,1753577455225,-460.0,0.00022475,2]
[375176021,1753577455235,-671.82,0.00022475,2]
[375176022,1753577455245,-624.6,0.00022573,2]
[375176023,1753577455256,-460.0,0.00022573,2]
[375176024,1753577455265,-910.08,0.00022573,2]
[375176025,1753577455275,-747.92,0.00022573,2]
[375176026,1753577455284,-2903.69572395,0.0002259,7]
[375176027,1753577455296,-150.0,0.00022594,2]
[375176028,1753577455307,-1189.54,0.00022635,2]
[375176029,1753577455316,-1127.01,0.00022635,2]
[375176030,1753577455326,-897.91,0.00022635,2]
[375176031,1753577455336,-460.0,0.00022635,2]
[375176032,1753577455347,-3134.01,0.00022644,2]
[375176033,1753577455357,-460.0,0.00022644,2]
[375176034,1753577455366,-460.0,0.00022646,2]
[375176035,1753577455376,-460.0,0.00022646,2]
[375176036,1753577455387,-487.91,0.00022646,2]
[375176037,1753577455396,-218.15,0.00022646,2]
[375176038,1753577455407,-680.27,0.00022646,2]
[375176039,1753577455417,-500.0,0.00022656,2]
[375176040,1753577455428,-460.0,0.00022745,2]
[375176041,1753577455439,-460.0,0.00022745,2]
[375176042,1753577455451,-888.86,0.00022747,2]
[375176043,1753577455462,-1108.21,0.00022747,2]
[375176044,1753577455472,-460.0,0.00022747,2]
[375176045,1753577455482,-1880.24,0.00022749,2]
[375176046,1753577455492,-460.0,0.00022749,2]
[375176047,1753577455502,-671.82,0.00022749,2]
[375176048,1753577455512,-3500.0,0.0002276,2]
[375176049,1753577455521,-2903.69572395,0.00022797,7]
[375176050,1753577455531,-150.0,0.000228,2]
[375176051,1753577455540,-2000.0,0.000228,6]
[375176052,1753577455550,-856.77,0.000228,2]
[375176053,1753577455560,-624.6,0.00022847,2]
[375176054,1753577455570,-460.0,0.00022847,2]
[375176055,1753577455579,-910.08,0.00022847,2]
[375176056,1753577455590,-747.92,0.00022847,2]
[375176057,1753577455599,-1189.54,0.00022909,2]
[375176058,1753577455609,-1127.01,0.00022909,2]
[375176059,1753577455618,-897.91,0.00022909,2]
[375176060,1753577455627,-460.0,0.00022909,2]
[375176061,1753577455637,-3134.01,0.00022918,2]
[375176062,1753577455647,-460.0,0.00022918,2]
[375176063,1753577455657,-460.0,0.0002292,2]
[375176064,1753577455666,-460.0,0.0002292,2]
[375176065,1753577455676,-487.91,0.0002292,2]
[375176066,1753577455686,-680.27,0.0002292,2]
[375176067,1753577455695,-557.88,0.00022922,2]
[375176068,1753577455706,-587.0,0.00022966,2]
[375176069,1753577455716,-645.0,0.00022968,2]
[375176070,1753577455725,-166.630852,0.00023,15]
[375176071,1753577455735,-840.57612966,0.00023,3]
[375176072,1753577455745,-160.0,0.00023,2]
[375176073,1753577455754,-160.0,0.00023,3]
[375176074,1753577455764,-2903.69572395,0.00023003,8]
[375176075,1753577455774,-166.630852,0.0002301,2]
[375176076,1753577455783,-158.0,0.00023014,7]
[375176077,1753577455793,-460.0,0.00023019,2]
[375176078,1753577455804,-460.0,0.00023019,2]
[375176079,1753577455813,-151.0,0.00023019,7]
[375176080,1753577455823,-888.86,0.00023021,2]
[375176081,1753577455832,-1108.21,0.00023021,2]
[375176082,1753577455841,-391.52,0.00023021,2]
[375176083,1753577455851,-557.88,0.00023022,7]
[375176084,1753577455861,-1880.24,0.00023023,2]
[375176085,1753577455871,-460.0,0.00023023,2]
[375176086,1753577455881,-671.82,0.00023023,2]
[375176087,1753577455890,-624.6,0.00023121,2]
[375176088,1753577455899,-460.0,0.00023121,2]
[375176089,1753577455909,-910.08,0.00023121,2]
[375176090,1753577455918,-747.92,0.00023121,2]
[375176091,1753577455929,-557.88,0.00023122,5]
[375176092,1753577455939,-197.14,0.00023134,2]
[375176093,1753577455949,-300.0,0.00023142,2]
[375176094,1753577455959,-1189.54,0.00023183,2]
[375176095,1753577455969,-1127.01,0.00023183,2]
[375176096,1753577455979,-897.91,0.00023183,2]
[375176097,1753577455989,-460.0,0.00023183,2]
[375176098,1753577455998,-3134.01,0.00023192,2]
[375176099,1753577456007,-460.0,0.00023192,2]
[375176100,1753577456017,-460.0,0.00023194,2]
[375176101,1753577456027,-460.0,0.00023194,2]
[375176102,1753577456036,-487.91,0.00023194,2]
[375176103,1753577456046,-680.27,0.00023194,2]
[375176104,1753577456055,-2903.69572395,0.0002321,8]
[375176105,1753577456065,-557.88,0.00023222,2]
[375176106,1753577456074,-197.14,0.00023264,2]
[375176107,1753577456084,-163.5778433,0.00023293,2]
[375176108,1753577456093,-460.0,0.00023293,2]
[375176109,1753577456103,-888.86,0.00023295,2]
[375176110,1753577456112,-1108.21,0.00023295,2]
[375176111,1753577456121,-1880.24,0.00023297,2]
[375176112,1753577456136,-460.0,0.00023297,2]
[375176113,1753577456224,-671.82,0.00023297,2]
[375176114,1753577456234,-874.49,0.000233,7]
[375176115,1753577456246,-2265.62,0.000233,7]
[375176116,1753577456256,-2612.59734139,0.00023308,2]
[375176117,1753577456266,-557.92,0.00023322,7]
[375176118,1753577456276,-151.0,0.00023395,7]
[375176119,1753577456286,-624.6,0.00023395,2]
[375176120,1753577456296,-460.0,0.00023395,2]
[375176121,1753577456306,-910.08,0.00023395,2]
[375176122,1753577456316,-747.92,0.00023395,2]
[375176123,1753577456325,-21072.81,0.000234,2]
[375176124,1753577456335,-151.0,0.000234,7]
[375176125,1753577456345,-238.089514,0.000234,7]
[375176126,1753577456355,-500.0,0.00023408,2]
[375176127,1753577456364,-2903.69572395,0.00023417,9]
[375176128,1753577456373,-1189.54,0.00023457,2]
[375176129,1753577456383,-1127.01,0.00023457,2]
[375176130,1753577456393,-897.91,0.00023457,2]
[375176131,1753577456403,-460.0,0.00023457,2]
[375176132,1753577456413,-3134.01,0.00023466,2]
[375176133,1753577456423,-460.0,0.00023466,2]
[375176134,1753577456433,-460.0,0.00023468,2]
[375176135,1753577456442,-542.7,0.00023468,2]
[375176136,1753577456452,-487.91,0.00023468,2]
[375176137,1753577456462,-680.27,0.00023468,2]
[375176138,1753577456473,-151.0,0.000235,7]
[375176139,1753577456483,-460.0,0.00023567,2]
[375176140,1753577456493,-888.86,0.00023569,2]
[375176141,1753577456502,-1108.21,0.00023569,2]
[375176142,1753577456512,-1880.24,0.00023571,2]
[375176143,1753577456522,-460.0,0.00023571,2]
[375176144,1753577456531,-671.82,0.00023571,2]
[375176145,1753577456541,-2995.26,0.000236,7]
[375176146,1753577456551,-166.630852,0.000236,3]
[375176147,1753577456561,-2903.69572395,0.00023624,9]
[375176148,1753577456571,-624.6,0.00023669,2]
[375176149,1753577456581,-460.0,0.00023669,2]
[375176150,1753577456591,-910.08,0.00023669,2]
[375176151,1753577456601,-747.92,0.00023669,2]
[375176152,1753577456611,-1189.54,0.00023731,2]
[375176153,1753577456622,-1127.01,0.00023731,2]
[375176154,1753577456631,-897.91,0.00023731,2]
[375176155,1753577456642,-460.0,0.00023731,2]
[375176156,1753577456652,-3134.01,0.0002374,2]
[375176157,1753577456661,-460.0,0.0002374,2]
[375176158,1753577456672,-240.58,0.00023742,2]
[375176159,1753577456681,-487.91,0.00023742,2]
[375176160,1753577456691,-680.27,0.00023742,2]
[375176161,1753577456700,-270.96,0.000238,7]
[375176162,1753577456710,-150.0,0.00023823,2]
[375176163,1753577456720,-166.630852,0.00023829,2]
[375176164,1753577456730,-2903.69572395,0.00023831,10]
[375176165,1753577456740,-524.3051936,0.00023841,2]
[375176166,1753577456750,-888.86,0.00023843,2]
[375176167,1753577456760,-1108.21,0.00023843,2]
[375176168,1753577456770,-1880.24,0.00023845,2]
[375176169,1753577456782,-460.0,0.00023845,2]
[375176170,1753577456792,-671.82,0.00023845,2]
[375176171,1753577456802,-624.6,0.00023943,2]
[375176172,1753577456811,-460.0,0.00023943,2]
[375176173,1753577456821,-910.08,0.00023943,2]
[375176174,1753577456831,-747.92,0.00023943,2]
[375176175,1753577456840,-1189.54,0.00024005,2]
[375176176,1753577456850,-1127.01,0.00024005,2]
[375176177,1753577456860,-897.91,0.00024005,2]
[375176178,1753577456870,-460.0,0.00024005,2]
[375176179,1753577456879,-3134.01,0.00024013,2]
[375176180,1753577456889,-460.0,0.00024013,2]
[375176181,1753577456898,-151.0,0.00024016,7]
[375176182,1753577456909,-487.91,0.00024016,2]
[375176183,1753577456919,-680.27,0.00024016,2]
[375176184,1753577456928,-2903.69572395,0.00024038,10]
[375176185,1753577456938,-888.86,0.00024117,2]
[375176186,1753577456948,-1108.21,0.00024117,2]
[375176187,1753577456958,-1880.24,0.00024119,2]
[375176188,1753577456968,-460.0,0.00024119,2]
[375176189,1753577456977,-671.82,0.00024119,2]
[375176190,1753577456987,-166.630852,0.00024167,3]
[375176191,1753577456998,-624.6,0.00024217,2]
[375176192,1753577457009,-460.0,0.00024217,2]
[375176193,1753577457018,-910.08,0.00024217,2]
[375176194,1753577457028,-747.92,0.00024217,2]
[375176195,1753577457037,-2903.69572395,0.00024245,10]
[375176196,1753577457047,-1189.54,0.00024279,2]
[375176197,1753577457057,-1127.01,0.00024279,2]
[375176198,1753577457067,-897.91,0.00024279,2]
[375176199,1753577457076,-460.0,0.00024279,2]
[375176200,1753577457086,-500.0,0.00024286,2]
[375176201,1753577457095,-3134.01,0.00024287,2]
[375176202,1753577457105,-460.0,0.00024287,2]
[375176203,1753577457114,-487.91,0.0002429,2]
[375176204,1753577457125,-680.27,0.0002429,2]
[375176205,1753577457136,-407.0,0.00024299,2]
[375176206,1753577457146,-166.630852,0.0002435,15]
[375176207,1753577457155,-966.45,0.00024386,2]
[375176208,1753577457165,-888.86,0.00024391,2]
[375176209,1753577457174,-1108.21,0.00024391,2]
[375176210,1753577457183,-1880.24,0.00024393,2]
[375176211,1753577457193,-460.0,0.00024393,2]
[375176212,1753577457202,-671.82,0.00024393,2]
[375176213,1753577457212,-2903.69572395,0.00024452,11]
[375176214,1753577457222,-624.6,0.00024491,2]
[375176215,1753577457231,-460.0,0.00024491,2]
[375176216,1753577457240,-910.08,0.00024491,2]
[375176217,1753577457250,-747.92,0.00024491,2]
[375176218,1753577457259,-198.10084,0.00024493,7]
[375176219,1753577457269,-1189.54,0.00024553,2]
[375176220,1753577457278,-1127.01,0.00024553,2]
[375176221,1753577457288,-897.91,0.00024553,2]
[375176222,1753577457297,-454.95333058,0.00024553,2]
[375176223,1753577457307,-3134.01,0.00024561,2]